[Event "Cracovia Festival-A 2023"]
[Site "Krakow"]
[Date "2024.01.02"]
[Round "7.26"]
[White "Selbes, Tamer Tarik"]
[Black "Kowalczyk, Pawel"]
[Result "1/2-1/2"]
[ECO "B24"]
[WhiteElo "2185"]
[BlackElo "2295"]
[Annotator "RC"]
[PlyCount "237"]
[EventDate "2023.12.24"]
[EventType "swiss"]
[EventCountry "POL"]
[SourceTitle "playchess.com"]
[Source "ChessBase"]
[SourceQuality "1"]
[TimeControl "40/5400+30:1800+30"]

1. e4 {[%emt 0:00:49]} c5 {[%emt 0:00:05]} 2. Nc3 {[%emt 0:02:03]} Nc6 {[%emt 0:00:06]} 3. Bb5 {[%emt 0:00:11]} g6 {[%emt 0:00:05]} 4. Bxc6 {[%emt 0:01:07]} dxc6 {[%emt 0:00:03]} 5. d3 {[%emt 0:00:33]} Bg7 {[%emt 0:00:05]} 6. f4 {[%emt 0:00:21]} c4 {[%emt 0:00:40]} 7. Nf3 {[%emt 0:02:21]} cxd3 {[%emt 0:00:06]} 8. cxd3 {[%emt 0:00:04]} Nf6 {[%emt 0:00:05]} 9. O-O {[%emt 0:00:20]} O-O {[%emt 0:00:04]} 10. h3 {[%emt 0:00:34]} c5 {[%emt 0:00:13]} 11. Be3 {[%emt 0:00:10]} b6 {[%emt 0:00:02]} 12. g4 {[%emt 0:04:33]} Ba6 {[%emt 0:00:16]} 13. Ne5 {[%emt 0:00:26]} Ne8 {[%emt 0:06:08]} 14. Rf3 {[%emt 0:07:42]} Nc7 {[%emt 0:02:17]} 15. Qa4 {[%emt 0:11:32]} Qe8 {[%emt 0:02:09]} 16. b4 {[%emt 0:09:30]} Qxa4 {[%emt 0:02:00]} 17. Nxa4 {[%emt 0:00:03]} f6 {[%emt 0:00:27]} 18. Nc6 {[%emt 0:05:14]} Bb5 {[%emt 0:00:42]} 19. Nxe7+ {[%emt 0:00:17]} Kf7 {[%emt 0:00:02]} 20. Nc3 {[%emt 0:00:19]} Kxe7 {[%emt 0:01:17]} 21. Nxb5 {[%emt 0:00:09]} Nxb5 {[%emt 0:00:03]} 22. bxc5 {[%emt 0:00:06]} f5 {[%emt 0:00:21]} 23. Rb1 {[%emt 0:00:30]} Nc3 {[%emt 0:01:47]} 24. Rb3 {[%emt 0:00:05]} Ne2+ {[%emt 0:01:58]} 25. Kg2 {[%emt 0:00:07]} Nd4 {[%emt 0:00:14]} 26. cxb6 {[%emt 0:00:25]} Nxb3 {[%emt 0:00:11]} 27. b7 {[%emt 0:00:03]} Rab8 {[%emt 0:00:09]} 28. axb3 {[%emt 0:00:06]} Kd7 {[%emt 0:00:21]} 29. gxf5 {[%emt 0:00:16]} gxf5 {[%emt 0:00:35]} 30. Rg3 {[%emt 0:00:16]} Rf7 {[%emt 0:00:54]} 31. e5 {[%emt 0:00:38]} Rxb7 {[%emt 0:00:04]} 32. d4 {[%emt 0:00:36]} Ke6 {[%emt 0:00:04]} 33. Bf2 {[%emt 0:00:22]} Bh6 {[%emt 0:00:04]} 34. d5+ {[%emt 0:00:14]} Kxd5 {[%emt 0:00:06]} 35. Rd3+ {[%emt 0:00:03]} Kc6 {[%emt 0:01:28]} 36. Rd6+ {[%emt 0:00:05]} Kb5 {[%emt 0:00:02]} 37. Rxh6 {[%emt 0:00:53]} Kb4 {[%emt 0:00:05]} 38. Kf3 {[%emt 0:06:22]} Kxb3 {[%emt 0:00:06]} 39. Bh4 {[%emt 0:06:52]} Rfc7 {[%emt 0:03:11]} 40. e6 {[%emt 0:00:00]} Rc3+ {[%emt 0:00:00]} 41. Kg2 {[%emt 0:01:09]} Rc2+ {[%emt 0:01:21]} 42. Kf1 {[%emt 0:00:17]} Rc1+ {[%emt 0:04:13]} 43. Kg2 {[%emt 0:00:51]} Rg7+ {[%emt 0:00:49]} 44. Kf2 {[%emt 0:03:04]} Rc2+ {[%emt 0:00:38]} 45. Kf1 {[%emt 0:00:10]} Rc4 {[%emt 0:01:37]} 46. Bg5 {[%emt 0:00:42]} Rc1+ {[%emt 0:01:04]} 47. Kf2 {[%emt 0:00:05]} Rc2+ {[%emt 0:00:06]} 48. Kf1 {[%emt 0:01:06]} Rgc7 {[%emt 0:11:29]} 49. e7 {[%emt 0:00:42]} Rh2 {[%emt 0:00:31]} 50. e8=Q {[%emt 0:04:47]} Rc1+ {[%emt 0:00:06]} 51. Qe1 {[%emt 0:00:03]} Rh1+ {[%emt 0:00:04]} 52. Kf2 {[%emt 0:00:07]} Rhxe1 {[%emt 0:00:13]} 53. Rxh7 {[%emt 0:00:05]} a5 {[%emt 0:00:09]} 54. Rb7+ {[%emt 0:00:35]} Ka4 {[%emt 0:01:21]} 55. Rf7 {[%emt 0:00:31]} Rf1+ {[%emt 0:01:26]} 56. Ke2 {[%emt 0:01:23]} Rh1 {[%emt 0:03:30]} 57. Rxf5 {[%emt 0:00:05]} Rc3 {[%emt 0:00:29]} 58. Rd5 {[%emt 0:01:56]} Rh2+ {[%emt 0:00:14]} 59. Kd1 {[%emt 0:00:14]} Rg3 {[%emt 0:00:12]} 60. Rd2 {[%emt 0:04:38]} Rxd2+ {[%emt 0:00:22]} 61. Kxd2 {[%emt 0:00:05]} Rxh3 {[%emt 0:00:09]} 62. Bd8 {[%emt 0:01:52]} Kb4 {[%emt 0:00:10]} 63. Be7+ {[%emt 0:01:43]} Kb3 {[%emt 0:00:39]} 64. f5 {[%emt 0:00:12]} Rf3 {[%emt 0:11:36]} 65. f6 {[%emt 0:00:18]} a4 {[%emt 0:00:27]} 66. Ke2 {[%emt 0:00:05]} Rf5 {[%emt 0:01:02]} 67. Ke3 {[%emt 0:00:27]} a3 {[%emt 0:00:41]} 68. Ke4 {[%emt 0:00:09]} Rf1 {[%emt 0:00:33]} 69. Bxa3 {[%emt 0:00:13]} Rxf6 {[%emt 0:00:32]} 70. Bc5 {[%emt 0:03:05]} Kc4 {[%emt 0:00:06]} 71. Bd4 {[%emt 0:01:11]} Re6+ {[%emt 0:00:08]} 72. Be5 {[%emt 0:00:06]} Kc5 {[%emt 0:00:03]} 73. Kf4 {[%emt 0:00:12]} Kd5 {[%emt 0:00:04]} 74. Bg7 {[%emt 0:00:24]} Re7 {[%emt 0:00:05]} 75. Bb2 {[%emt 0:00:14]} Rb7 {[%emt 0:00:40]} 76. Bc3 {[%emt 0:00:28]} Rf7+ {[%emt 0:00:23]} 77. Ke3 {[%emt 0:00:07]} Rh7 {[%emt 0:00:13]} 78. Bf6 {[%emt 0:00:06]} Rh1 {[%emt 0:00:33]} 79. Bg7 {[%emt 0:00:16]} Re1+ {[%emt 0:00:06]} 80. Kf3 {[%emt 0:00:11]} Ke6 {[%emt 0:00:04]} 81. Bd4 {[%emt 0:00:11]} Kf5 {[%emt 0:00:07]} 82. Bf2 {[%emt 0:00:49]} Re8 {[%emt 0:00:06]} 83. Be3 {[%emt 0:00:14]} Rb8 {[%emt 0:00:05]} 84. Bd4 {[%emt 0:00:47]} Rb3+ {[%emt 0:00:05]} 85. Be3 {[%emt 0:01:10]} Ra3 {[%emt 0:00:04]} 86. Kf2 {[%emt 0:00:13]} Ke4 {[%emt 0:00:04]} 87. Bc5 {[%emt 0:00:13]} Rf3+ {[%emt 0:00:08]} 88. Kg2 {[%emt 0:00:11]} Kf4 {[%emt 0:00:04]} 89. Bb6 {[%emt 0:01:34]} Kg4 {[%emt 0:00:06]} 90. Bf2 {[%emt 0:01:23]} Ra3 {[%emt 0:00:04]} 91. Bd4 {[%emt 0:00:45]} Ra2+ {[%emt 0:00:04]} 92. Kh1 {[%emt 0:00:28]} Kf3 {[%emt 0:00:08]} 93. Bc5 {[%emt 0:03:19]} Rc2 {[%emt 0:00:24]} 94. Bd4 {[%emt 0:00:19]} Rd2 {[%emt 0:00:05]} 95. Bb6 {[%emt 0:02:52]} Rd1+ {[%emt 0:00:12]} 96. Bg1 {[%emt 0:02:15]} Rb1 {[%emt 0:00:04]} 97. Kh2 {[%emt 0:00:08]} Rb2+ {[%emt 0:00:07]} 98. Kh1 {[%emt 0:00:00]} Kg3 {[%emt 0:00:00]} 99. Bc5 {[%emt 0:01:31]} Rd2 {[%emt 0:00:00]} 100. Bb6 {[%emt 0:01:44]} Rd7 {[%emt 0:00:11]} 101. Bc5 {[%emt 0:00:35]} Rd1+ {[%emt 0:00:16]} 102. Bg1 {[%emt 0:00:09]} Rd5 {[%emt 0:00:03]} 103. Bh2+ {[%emt 0:02:28]} Kf2 {[%emt 0:00:07]} 104. Bg1+ {[%emt 0:00:15]} Kf1 {[%emt 0:00:02]} 105. Bh2 {[%emt 0:00:07]} Rg5 {[%emt 0:00:11]} 106. Bf4 {[%emt 0:00:29]} Rg7 {[%emt 0:00:02]} 107. Be5 {[%emt 0:00:24]} Rf7 {[%emt 0:00:07]} 108. Bd6 {[%emt 0:00:20]} Rd7 {[%emt 0:00:18]} 109. Bh2 {[%emt 0:02:08]} Kf2 {[%emt 0:00:15]} 110. Bg1+ {[%emt 0:00:08]} Kf3 {[%emt 0:00:02]} 111. Bh2 {[%emt 0:00:30]} Rh7 {[%emt 0:00:19]} 112. Kg1 {[%emt 0:00:09]} Rg7+ {[%emt 0:00:01]} 113. Kh1 {[%emt 0:00:24]} Kf2 {[%emt 0:00:04]} 114. Be5 {[%emt 0:00:25]} Rg1+ {[%emt 0:00:13]} 115. Kh2 {[%emt 0:00:07]} Rd1 {[%emt 0:00:05]} 116. Bg3+ {[%emt 0:00:21]} Kf3 {[%emt 0:00:04]} 117. Bc7 {[%emt 0:00:07]} Rd2+ {[%emt 0:00:49]} 118. Kh1 {[%emt 0:00:16]} Rh2+ {[%emt 0:00:05]} 119. Kxh2 {[%emt 0:00:04]} 1/2-1/2

[Event "Cracovia Festival-A 2023"]
[Site "Krakow"]
[Date "2024.01.02"]
[Round "7.27"]
[White "Lukasiewicz, Krzysztof"]
[Black "van der Merwe, Alexander"]
[Result "1-0"]
[ECO "A45"]
[WhiteElo "2290"]
[BlackElo "2113"]
[Annotator "RC"]
[PlyCount "153"]
[EventDate "2023.12.24"]
[EventType "swiss"]
[EventCountry "POL"]
[SourceTitle "playchess.com"]
[Source "ChessBase"]
[SourceQuality "1"]
[TimeControl "40/5400+30:1800+30"]

1. d4 {[%emt 0:05:22]} Nf6 {[%emt 0:00:08]} 2. Bf4 {[%emt 0:00:03]} g6 {[%emt 0:00:11]} 3. Nc3 {[%emt 0:00:05]} d5 {[%emt 0:00:07]} 4. e3 {[%emt 0:00:05]} Bg7 {[%emt 0:00:10]} 5. h4 {[%emt 0:00:09]} h5 {[%emt 0:00:06]} 6. Nf3 {[%emt 0:00:07]} O-O {[%emt 0:00:12]} 7. Be2 {[%emt 0:00:04]} c5 {[%emt 0:00:08]} 8. Ne5 {[%emt 0:02:58]} Nc6 {[%emt 0:01:49]} 9. O-O {[%emt 0:02:15]} cxd4 {[%emt 0:01:33]} 10. exd4 {[%emt 0:00:32]} Bf5 {[%emt 0:02:37]} 11. Re1 {[%emt 0:07:28]} e6 {[%emt 0:13:16]} 12. g3 {[%emt 0:13:08]} Nd7 {[%emt 0:05:03]} 13. Nxd7 {[%emt 0:04:17]} Qxd7 {[%emt 0:00:11]} 14. Be3 {[%emt 0:00:02]} e5 {[%emt 0:06:52]} 15. Bb5 {[%emt 0:08:05]} exd4 {[%emt 0:03:27]} 16. Bxc6 {[%emt 0:00:05]} bxc6 {[%emt 0:00:50]} 17. Bxd4 {[%emt 0:00:09]} Bxc2 {[%emt 0:01:28]} 18. Qd2 {[%emt 0:00:11]} Bf5 {[%emt 0:00:42]} 19. Bxg7 {[%emt 0:00:03]} Kxg7 {[%emt 0:00:08]} 20. Qd4+ {[%emt 0:00:03]} Kg8 {[%emt 0:00:44]} 21. b4 {[%emt 0:00:06]} Be6 {[%emt 0:11:58]} 22. Na4 {[%emt 0:02:15]} Bf5 {[%emt 0:13:10]} 23. Rac1 {[%emt 0:03:44]} Rae8 {[%emt 0:01:10]} 24. Nc3 {[%emt 0:02:14]} Rxe1+ {[%emt 0:04:22]} 25. Rxe1 {[%emt 0:00:04]} Re8 {[%emt 0:01:27]} 26. Rxe8+ {[%emt 0:00:18]} Qxe8 {[%emt 0:00:02]} 27. b5 {[%emt 0:00:20]} Be6 {[%emt 0:04:27]} 28. Qxa7 {[%emt 0:04:42]} cxb5 {[%emt 0:00:15]} 29. Qc5 {[%emt 0:00:11]} Qa8 {[%emt 0:02:32]} 30. Kh2 {[%emt 0:01:09]} Qb7 {[%emt 0:04:21]} 31. a3 {[%emt 0:02:34]} Qc8 {[%emt 0:08:32]} 32. Qxc8+ {[%emt 0:12:56]} Bxc8 {[%emt 0:00:02]} 33. Nxb5 {[%emt 0:00:07]} Kg7 {[%emt 0:04:18]} 34. Kg2 {[%emt 0:01:38]} Kf6 {[%emt 0:01:01]} 35. Kf3 {[%emt 0:00:02]} Ke5 {[%emt 0:00:39]} 36. Ke3 {[%emt 0:00:06]} Bd7 {[%emt 0:00:55]} 37. Nd4 {[%emt 0:00:09]} Kd6 {[%emt 0:02:05]} 38. Kd3 {[%emt 0:00:16]} Ba4 {[%emt 0:01:21]} 39. Kc3 {[%emt 0:01:35]} Kc5 {[%emt 0:00:29]} 40. Nb3+ {[%emt 0:00:00]} Kd6 {[%emt 0:00:00]} 41. f4 {[%emt 0:10:45]} f6 {[%emt 0:04:51]} 42. Kb4 {[%emt 0:00:34]} Bd7 {[%emt 0:08:19]} 43. Nd4 {[%emt 0:01:08]} Bc8 {[%emt 0:00:31]} 44. a4 {[%emt 0:00:44]} Ba6 {[%emt 0:02:30]} 45. Ka5 {[%emt 0:01:55]} Bd3 {[%emt 0:03:39]} 46. Kb6 {[%emt 0:00:10]} Bf1 {[%emt 0:04:08]} 47. a5 {[%emt 0:00:07]} Bd3 {[%emt 0:01:17]} 48. Nb5+ {[%emt 0:05:05]} Kd7 {[%emt 0:05:11]} 49. Kc5 {[%emt 0:03:09]} d4 {[%emt 0:01:51]} 50. Nxd4 {[%emt 0:00:05]} Be4 {[%emt 0:00:18]} 51. a6 {[%emt 0:03:47]} Kc7 {[%emt 0:00:32]} 52. Nb5+ {[%emt 0:01:22]} Kd7 {[%emt 0:00:13]} 53. Nc3 {[%emt 0:00:19]} Bf3 {[%emt 0:00:50]} 54. Nd5 {[%emt 0:00:24]} Ke6 {[%emt 0:00:08]} 55. Ne3 {[%emt 0:00:21]} Kd7 {[%emt 0:00:57]} 56. f5 {[%emt 0:02:08]} gxf5 {[%emt 0:01:05]} 57. Nxf5 {[%emt 0:01:22]} Kc7 {[%emt 0:00:52]} 58. Ng7 {[%emt 0:00:41]} Be2 {[%emt 0:05:02]} 59. a7 {[%emt 0:00:51]} Kb7 {[%emt 0:00:11]} 60. Kd6 {[%emt 0:00:05]} Kxa7 {[%emt 0:00:10]} 61. Ke6 {[%emt 0:00:36]} Kb6 {[%emt 0:00:04]} 62. Kxf6 {[%emt 0:00:04]} Kc6 {[%emt 0:00:07]} 63. Kg6 {[%emt 0:00:42]} Kd6 {[%emt 0:00:36]} 64. Nxh5 {[%emt 0:00:04]} Ke5 {[%emt 0:00:34]} 65. Nf6 {[%emt 0:00:27]} Bd3+ {[%emt 0:00:20]} 66. Kg7 {[%emt 0:00:06]} Kf5 {[%emt 0:00:32]} 67. g4+ {[%emt 0:00:16]} Kf4 {[%emt 0:00:09]} 68. g5 {[%emt 0:00:43]} Kg3 {[%emt 0:00:22]} 69. h5 {[%emt 0:00:04]} Kh4 {[%emt 0:00:06]} 70. g6 {[%emt 0:00:02]} Kg5 {[%emt 0:00:15]} 71. Nd5 {[%emt 0:01:12]} Be4 {[%emt 0:00:53]} 72. Nf4 {[%emt 0:00:02]} Kxf4 {[%emt 0:00:52]} 73. h6 {[%emt 0:00:04]} Kg5 {[%emt 0:00:05]} 74. h7 {[%emt 0:00:04]} Bxg6 {[%emt 0:00:05]} 75. h8=Q {[%emt 0:00:03]} Bf5 {[%emt 0:00:13]} 76. Qh6+ {[%emt 0:00:07]} Kg4 {[%emt 0:00:05]} 77. Kf6 {[%emt 0:00:03]} 1-0

[Event "Cracovia Festival-A 2023"]
[Site "Krakow"]
[Date "2024.01.02"]
[Round "7.28"]
[White "Vasynda, Oleksandr"]
[Black "Janeczko, Jakub"]
[Result "1-0"]
[ECO "A40"]
[WhiteElo "2153"]
[BlackElo "2283"]
[Annotator "RC"]
[PlyCount "53"]
[EventDate "2023.12.24"]
[EventType "swiss"]
[EventCountry "POL"]
[SourceTitle "playchess.com"]
[Source "ChessBase"]
[SourceQuality "1"]
[TimeControl "40/5400+30:1800+30"]

1. d4 {[%emt 0:00:02]} g6 {[%emt 0:00:01]} 2. Nf3 {[%emt 0:00:12]} Bg7 {[%emt 0:00:05]} 3. c4 {[%emt 0:00:12]} c5 {[%emt 0:01:12]} 4. d5 {[%emt 0:00:18]} b5 {[%emt 0:00:11]} 5. cxb5 {[%emt 0:00:17]} d6 {[%emt 0:00:42]} 6. Nc3 {[%emt 0:01:28]} Nf6 {[%emt 0:00:35]} 7. g3 {[%emt 0:00:11]} O-O {[%emt 0:00:23]} 8. Bg2 {[%emt 0:00:11]} a6 {[%emt 0:00:44]} 9. bxa6 {[%emt 0:00:18]} Nbd7 {[%emt 0:01:45]} 10. O-O {[%emt 0:01:03]} Nb6 {[%emt 0:05:35]} 11. e4 {[%emt 0:03:54]} Bxa6 {[%emt 0:03:23]} 12. Re1 {[%emt 0:00:10]} Nfd7 {[%emt 0:03:21]} 13. Qc2 {[%emt 0:05:50]} Qc7 {[%emt 0:09:25]} 14. b3 {[%emt 0:05:25]} Rfb8 {[%emt 0:11:43]} 15. Bb2 {[%emt 0:01:46]} Nc8 {[%emt 0:05:00]} 16. Nd1 {[%emt 0:04:16]} Qa5 {[%emt 0:06:28]} 17. Bxg7 {[%emt 0:03:02]} Kxg7 {[%emt 0:00:02]} 18. Nb2 {[%emt 0:00:29]} Qb4 {[%emt 0:09:54]} 19. e5 {[%emt 0:07:03]} dxe5 {[%emt 0:01:05]} 20. Nxe5 {[%emt 0:00:19]} Nxe5 {[%emt 0:00:01]} 21. Rxe5 {[%emt 0:00:02]} Ra7 {[%emt 0:00:00]} 22. Re4 {[%emt 0:06:43]} Qa5 {[%emt 0:00:32]} 23. Nc4 {[%emt 0:02:36]} Bxc4 {[%emt 0:03:47]} 24. Rxc4 {[%emt 0:00:24]} Rc7 {[%emt 0:00:25]} 25. Rc1 {[%emt 0:01:20]} Nd6 {[%emt 0:00:56]} 26. b4 {[%emt 0:01:17]} Qa3 {[%emt 0:01:55]} 27. Rc3 {[%emt 0:01:43]} 1-0

[Event "Cracovia Festival-A 2023"]
[Site "Krakow"]
[Date "2024.01.02"]
[Round "7.29"]
[White "Keinanen, Anastasia"]
[Black "Gorkiewicz, Mateusz"]
[Result "1-0"]
[ECO "C77"]
[WhiteElo "2227"]
[BlackElo "2147"]
[Annotator "RC"]
[PlyCount "65"]
[EventDate "2023.12.24"]
[EventType "swiss"]
[EventCountry "POL"]
[SourceTitle "playchess.com"]
[Source "ChessBase"]
[SourceQuality "1"]
[TimeControl "40/5400+30:1800+30"]

1. e4 {[%emt 0:00:07]} e5 {[%emt 0:00:08]} 2. Nf3 {[%emt 0:00:06]} Nc6 {[%emt 0:00:10]} 3. Bb5 {[%emt 0:00:12]} a6 {[%emt 0:00:17]} 4. Ba4 {[%emt 0:00:04]} Nf6 {[%emt 0:00:18]} 5. d3 {[%emt 0:00:06]} b5 {[%emt 0:00:21]} 6. Bb3 {[%emt 0:00:05]} Bc5 {[%emt 0:00:12]} 7. c3 {[%emt 0:00:38]} d6 {[%emt 0:00:16]} 8. h3 {[%emt 0:00:27]} h6 {[%emt 0:00:15]} 9. a4 {[%emt 0:00:30]} Rb8 {[%emt 0:04:04]} 10. axb5 {[%emt 0:00:48]} axb5 {[%emt 0:00:09]} 11. Be3 {[%emt 0:02:47]} Bxe3 {[%emt 0:03:47]} 12. fxe3 {[%emt 0:00:06]} O-O {[%emt 0:04:21]} 13. O-O {[%emt 0:00:08]} d5 {[%emt 0:04:05]} 14. exd5 {[%emt 0:01:12]} Nxd5 {[%emt 0:00:12]} 15. Qe2 {[%emt 0:05:51]} Be6 {[%emt 0:05:18]} 16. Nbd2 {[%emt 0:04:01]} Qd7 {[%emt 0:07:03]} 17. d4 {[%emt 0:19:04]} exd4 {[%emt 0:16:27]} 18. exd4 {[%emt 0:03:03]} Rfe8 {[%emt 0:05:33]} 19. Qf2 {[%emt 0:05:16]} Ne3 {[%emt 0:11:04]} 20. Rfe1 {[%emt 0:05:48]} Bxb3 {[%emt 0:00:56]} 21. Nxb3 {[%emt 0:00:52]} Nc4 {[%emt 0:01:58]} 22. Nc5 {[%emt 0:03:47]} Qd6 {[%emt 0:00:27]} 23. Nh4 {[%emt 0:06:33]} Nb6 {[%emt 0:10:46]} 24. Rf1 {[%emt 0:05:26]} Rf8 {[%emt 0:02:46]} 25. Nf5 {[%emt 0:08:39]} Qg6 {[%emt 0:03:55]} 26. d5 {[%emt 0:02:48]} Nxd5 {[%emt 0:00:19]} 27. Nd7 {[%emt 0:00:03]} Qg5 {[%emt 0:09:27]} 28. Nxb8 {[%emt 0:01:04]} Nxb8 {[%emt 0:00:52]} 29. Rad1 {[%emt 0:05:47]} c6 {[%emt 0:02:20]} 30. Rd3 {[%emt 0:01:34]} g6 {[%emt 0:00:35]} 31. Rg3 {[%emt 0:03:58]} Qh5 {[%emt 0:00:44]} 32. Qd4 {[%emt 0:00:34]} f6 {[%emt 0:01:32]} 33. Qa7 {[%emt 0:00:09]} 1-0

[Event "Cracovia Festival-A 2023"]
[Site "Krakow"]
[Date "2024.01.02"]
[Round "7.30"]
[White "Janzelj, Tim"]
[Black "Hnatyshyn, Anastasiia"]
[Result "0-1"]
[ECO "B12"]
[WhiteElo "2441"]
[BlackElo "2152"]
[Annotator "RC"]
[PlyCount "74"]
[EventDate "2023.12.24"]
[EventType "swiss"]
[EventCountry "POL"]
[SourceTitle "playchess.com"]
[Source "ChessBase"]
[SourceQuality "1"]
[TimeControl "40/5400+30:1800+30"]

1. e4 {[%emt 0:03:57]} c6 {[%emt 0:00:03]} 2. d4 {[%emt 0:00:06]} d5 {[%emt 0:00:05]} 3. e5 {[%emt 0:00:27]} c5 {[%emt 0:00:08]} 4. Nf3 {[%emt 0:00:05]} Nc6 {[%emt 0:00:10]} 5. c4 {[%emt 0:00:10]} e6 {[%emt 0:03:27]} 6. Nc3 {[%emt 0:00:45]} dxc4 {[%emt 0:04:46]} 7. Bxc4 {[%emt 0:07:11]} cxd4 {[%emt 0:05:26]} 8. Ne2 {[%emt 0:07:06]} Nxe5 {[%emt 0:08:09]} 9. Nxe5 {[%emt 0:00:31]} Qa5+ {[%emt 0:00:02]} 10. Bd2 {[%emt 0:00:17]} Qxe5 {[%emt 0:00:07]} 11. O-O {[%emt 0:00:21]} Nf6 {[%emt 0:08:32]} 12. Bf4 {[%emt 0:03:05]} Qe4 {[%emt 0:03:50]} 13. Re1 {[%emt 0:15:23]} Bd7 {[%emt 0:07:27]} 14. Qd2 {[%emt 0:08:52]} Bc6 {[%emt 0:11:37]} 15. f3 {[%emt 0:00:12]} Qg6 {[%emt 0:00:07]} 16. Ng3 {[%emt 0:02:22]} Nd5 {[%emt 0:06:46]} 17. Bd3 {[%emt 0:01:27]} Bb4 {[%emt 0:00:43]} 18. Qc2 {[%emt 0:01:30]} Qf6 {[%emt 0:01:28]} 19. Nh5 {[%emt 0:00:23]} Qe7 {[%emt 0:03:03]} 20. Nxg7+ {[%emt 0:00:23]} Kd7 {[%emt 0:01:51]} 21. Re4 {[%emt 0:04:49]} Nxf4 {[%emt 0:06:59]} 22. Rxf4 {[%emt 0:00:06]} Bd6 {[%emt 0:00:07]} 23. Rxd4 {[%emt 0:02:15]} Qg5 {[%emt 0:00:47]} 24. Qc3 {[%emt 0:08:54]} Kc7 {[%emt 0:05:23]} 25. Rc1 {[%emt 0:18:40]} Rad8 {[%emt 0:04:33]} 26. Rc4 {[%emt 0:03:59]} Kb8 {[%emt 0:03:27]} 27. Rxc6 {[%emt 0:04:52]} bxc6 {[%emt 0:00:48]} 28. Be4 {[%emt 0:00:30]} Bc5+ {[%emt 0:06:07]} 29. Kh1 {[%emt 0:03:46]} Qe3 {[%emt 0:01:11]} 30. Qc2 {[%emt 0:01:57]} Rd2 {[%emt 0:02:03]} 31. Qa4 {[%emt 0:00:02]} Re2 {[%emt 0:02:16]} 32. Qb3+ {[%emt 0:01:30]} Qxb3 {[%emt 0:00:09]} 33. axb3 {[%emt 0:00:01]} Rg8 {[%emt 0:01:27]} 34. g3 {[%emt 0:00:17]} Be3 {[%emt 0:00:19]} 35. Rd1 {[%emt 0:00:48]} Rxg7 {[%emt 0:00:24]} 36. Rd7 {[%emt 0:00:10]} Rg5 {[%emt 0:00:45]} 37. Bd3 {[%emt 0:00:53]} Rd2 {[%emt 0:00:32]} 0-1

[Event "Cracovia Festival-A 2023"]
[Site "Krakow"]
[Date "2024.01.02"]
[Round "7.31"]
[White "Sofronie, Iulian"]
[Black "Hryharovich, Aliaksei"]
[Result "1/2-1/2"]
[ECO "D00"]
[WhiteElo "2438"]
[BlackElo "2195"]
[Annotator "RC"]
[PlyCount "113"]
[EventDate "2023.12.24"]
[EventType "swiss"]
[EventCountry "POL"]
[SourceTitle "playchess.com"]
[Source "ChessBase"]
[SourceQuality "1"]
[TimeControl "40/5400+30:1800+30"]

1. d4 {[%emt 0:00:03]} d5 {[%emt 0:00:11]} 2. Bf4 {[%emt 0:00:04]} Nf6 {[%emt 0:00:13]} 3. e3 {[%emt 0:00:07]} c5 {[%emt 0:00:08]} 4. c3 {[%emt 0:00:08]} Nc6 {[%emt 0:00:27]} 5. Nd2 {[%emt 0:00:05]} Bf5 {[%emt 0:00:40]} 6. Ngf3 {[%emt 0:01:13]} Qb6 {[%emt 0:00:52]} 7. Nh4 {[%emt 0:00:14]} Bd7 {[%emt 0:00:22]} 8. Qb3 {[%emt 0:00:16]} c4 {[%emt 0:00:09]} 9. Qc2 {[%emt 0:00:04]} Nh5 {[%emt 0:00:22]} 10. Bg3 {[%emt 0:05:08]} Nxg3 {[%emt 0:01:37]} 11. hxg3 {[%emt 0:00:19]} g5 {[%emt 0:00:54]} 12. Nhf3 {[%emt 0:00:37]} g4 {[%emt 0:00:09]} 13. Nh4 {[%emt 0:03:14]} e5 {[%emt 0:03:52]} 14. e4 {[%emt 0:02:36]} exd4 {[%emt 0:05:48]} 15. exd5 {[%emt 0:00:58]} d3 {[%emt 0:01:04]} 16. Nxc4 {[%emt 0:04:09]} dxc2 {[%emt 0:01:21]} 17. Nxb6 {[%emt 0:00:06]} axb6 {[%emt 0:00:26]} 18. dxc6 {[%emt 0:00:05]} Bxc6 {[%emt 0:01:26]} 19. Kd2 {[%emt 0:06:28]} Be4 {[%emt 0:15:40]} 20. Bb5+ {[%emt 0:06:27]} Ke7 {[%emt 0:00:16]} 21. f3 {[%emt 0:13:43]} Bh6+ {[%emt 0:06:11]} 22. f4 {[%emt 0:00:02]} Rad8+ {[%emt 0:24:20]} 23. Kc1 {[%emt 0:02:02]} Kf6 {[%emt 0:10:01]} 24. Ba4 {[%emt 0:00:47]} Bf8 {[%emt 0:01:02]} 25. Bxc2 {[%emt 0:00:19]} Bxc2 {[%emt 0:00:05]} 26. Kxc2 {[%emt 0:00:04]} Bc5 {[%emt 0:00:16]} 27. Rae1 {[%emt 0:04:53]} Rhe8 {[%emt 0:05:26]} 28. Re5 {[%emt 0:01:41]} Rxe5 {[%emt 0:00:06]} 29. fxe5+ {[%emt 0:00:05]} Kxe5 {[%emt 0:00:07]} 30. Re1+ {[%emt 0:00:09]} Kf6 {[%emt 0:00:55]} 31. Rf1+ {[%emt 0:02:42]} Ke6 {[%emt 0:00:08]} 32. Nf5 {[%emt 0:04:43]} Rd5 {[%emt 0:01:05]} 33. Ng7+ {[%emt 0:02:37]} Ke7 {[%emt 0:00:55]} 34. b4 {[%emt 0:00:20]} Bd6 {[%emt 0:00:21]} 35. Nf5+ {[%emt 0:00:39]} Ke6 {[%emt 0:01:33]} 36. Nxd6 {[%emt 0:00:15]} Rxd6 {[%emt 0:00:33]} 37. Rh1 {[%emt 0:01:58]} Ke5 {[%emt 0:02:33]} 38. Rxh7 {[%emt 0:02:46]} Rf6 {[%emt 0:00:35]} 39. Kb3 {[%emt 0:00:38]} Rf2 {[%emt 0:00:54]} 40. a4 {[%emt 0:00:00]} f5 {[%emt 0:00:00]} 41. Rxb7 {[%emt 0:01:37]} Rxg2 {[%emt 0:18:12]} 42. Rxb6 {[%emt 0:01:04]} Rxg3 {[%emt 0:00:16]} 43. a5 {[%emt 0:00:07]} Rg1 {[%emt 0:10:00]} 44. a6 {[%emt 0:00:57]} Ra1 {[%emt 0:07:16]} 45. Rg6 {[%emt 0:01:42]} g3 {[%emt 0:07:34]} 46. Rxg3 {[%emt 0:01:27]} Rxa6 {[%emt 0:00:19]} 47. Rg1 {[%emt 0:03:11]} f4 {[%emt 0:00:32]} 48. b5 {[%emt 0:00:05]} Rf6 {[%emt 0:00:54]} 49. Kb4 {[%emt 0:00:37]} Kd6 {[%emt 0:03:17]} 50. Rg7 {[%emt 0:07:44]} f3 {[%emt 0:00:57]} 51. b6 {[%emt 0:01:46]} f2 {[%emt 0:01:03]} 52. b7 {[%emt 0:00:22]} Rf8 {[%emt 0:00:17]} 53. Rf7 {[%emt 0:00:06]} Rb8 {[%emt 0:00:13]} 54. Rf6+ {[%emt 0:00:47]} Ke5 {[%emt 0:02:08]} 55. Rxf2 {[%emt 0:00:14]} Rxb7+ {[%emt 0:00:03]} 56. Kc4 {[%emt 0:00:15]} Rc7+ {[%emt 0:00:16]} 57. Kd3 {[%emt 0:00:33]} 1/2-1/2